[Event "*** Titled Tuesday Blitz"]
[Site "Chess.com"]
[Date "2021.02.09"]
[Round "2"]
[White "1977Ivan"]
[Black "djano"]
[Result "0-1"]
[WhiteElo "2671"]
[BlackElo "2481"]
[TimeControl "180+1"]
[EndTime "10:19:14 PST"]
[Termination "djano won on time"]

1. d4 {[%clk 0:03:00.9]} 1... d5 {[%clk 0:02:59.6]} 2. c4 {[%clk 0:03:01.1]}
2... c6 {[%clk 0:02:58.5]} 3. Nf3 {[%clk 0:02:59.9]} 3... Nf6 {[%clk 0:02:57.9]}
4. Nc3 {[%clk 0:03:00.4]} 4... a6 {[%clk 0:02:57.2]} 5. Bg5 {[%clk 0:02:57.4]}
5... Ne4 {[%clk 0:02:50.4]} 6. h4 {[%clk 0:02:57.3]} 6... b5 {[%clk 0:02:38.6]}
7. cxd5 {[%clk 0:02:55.9]} 7... cxd5 {[%clk 0:02:37.8]} 8. e3 {[%clk 0:02:56.4]}
8... Bg4 {[%clk 0:02:22.8]} 9. Qb3 {[%clk 0:02:54.1]} 9... h6 {[%clk 0:01:58.8]}
10. Bf4 {[%clk 0:02:30.8]} 10... Nxc3 {[%clk 0:01:53.6]} 11. Qxc3 {[%clk
0:02:13.6]} 11... Bxf3 {[%clk 0:01:42.8]} 12. gxf3 {[%clk 0:02:14.5]} 12... Nd7
{[%clk 0:01:43.3]} 13. Bc7 {[%clk 0:02:13.5]} 13... Qc8 {[%clk 0:01:42.8]} 14.
Rc1 {[%clk 0:02:13.1]} 14... e6 {[%clk 0:01:37.8]} 15. Bd3 {[%clk 0:01:55.3]}
15... Be7 {[%clk 0:01:34.1]} 16. Ke2 {[%clk 0:01:55.3]} 16... Qb7 {[%clk
0:01:18.1]} 17. Qc6 {[%clk 0:01:52.1]} 17... Qxc6 {[%clk 0:01:14.5]} 18. Rxc6
{[%clk 0:01:53]} 18... O-O {[%clk 0:01:15.2]} 19. h5 {[%clk 0:01:45.1]} 19...
Rfc8 {[%clk 0:01:12.5]} 20. Rhc1 {[%clk 0:01:44.6]} 20... Nf6 {[%clk 0:01:05.8]}
21. Be5 {[%clk 0:01:18.1]} 21... Rxc6 {[%clk 0:01:04.4]} 22. Rxc6 {[%clk
0:01:19]} 22... Nxh5 {[%clk 0:01:04.5]} 23. b3 {[%clk 0:00:58.8]} 23... Nf6
{[%clk 0:01:00.2]} 24. a4 {[%clk 0:00:58.3]} 24... bxa4 {[%clk 0:00:55.8]} 25.
bxa4 {[%clk 0:00:59.2]} 25... a5 {[%clk 0:00:54.9]} 26. Bc7 {[%clk 0:00:53.5]}
26... Bb4 {[%clk 0:00:53]} 27. Rb6 {[%clk 0:00:43.4]} 27... Rc8 {[%clk
0:00:49.1]} 28. Rb7 {[%clk 0:00:41.3]} 28... Ne8 {[%clk 0:00:41.1]} 29. Be5
{[%clk 0:00:39.9]} 29... f6 {[%clk 0:00:39]} 30. Bb8 {[%clk 0:00:31.5]} 30... f5
{[%clk 0:00:20.5]} 31. Bb5 {[%clk 0:00:22.4]} 31... Rc2+ {[%clk 0:00:18.6]} 32.
Kf1 {[%clk 0:00:17.1]} 32... Nd6 {[%clk 0:00:18.5]} 33. Bxd6 {[%clk 0:00:10.4]}
33... Bxd6 {[%clk 0:00:19.4]} 34. Bd7 {[%clk 0:00:08.9]} 34... Kf7 {[%clk
0:00:14.2]} 35. Rb6 {[%clk 0:00:04.9]} 35... Ke7 {[%clk 0:00:14.1]} 36. Bb5
{[%clk 0:00:04.2]} 36... f4 {[%clk 0:00:13.6]} 37. Rb7+ {[%clk 0:00:03.7]} 37...
Kf6 {[%clk 0:00:13.8]} 38. e4 {[%clk 0:00:04.5]} 38... dxe4 {[%clk 0:00:13.6]}
39. fxe4 {[%clk 0:00:05.4]} 39... e5 {[%clk 0:00:13.9]} 40. d5 {[%clk
0:00:05.4]} 40... Bc5 {[%clk 0:00:14.4]} 41. f3 {[%clk 0:00:05.5]} 41... Rf2+
{[%clk 0:00:14.1]} 42. Ke1 {[%clk 0:00:06]} 42... Rxf3 {[%clk 0:00:15]} 43. Rc7
{[%clk 0:00:05.8]} 43... Re3+ {[%clk 0:00:15.2]} 44. Kd2 {[%clk 0:00:05.1]}
44... Bb4+ {[%clk 0:00:15.3]} 45. Kc2 {[%clk 0:00:04.1]} 45... f3 {[%clk
0:00:15.8]} 46. Rc6+ {[%clk 0:00:03.8]} 46... Kg5 {[%clk 0:00:15.6]} 47. d6
{[%clk 0:00:03.9]} 47... Rxe4 {[%clk 0:00:09.7]} 48. d7 {[%clk 0:00:03.4]} 48...
Rd4 {[%clk 0:00:10.2]} 49. Rc8 {[%clk 0:00:03.8]} 49... Be7 {[%clk 0:00:09.1]}
50. Re8 {[%clk 0:00:04.2]} 50... Kf6 {[%clk 0:00:09]} 51. Kc3 {[%clk 0:00:02.6]}
51... Rd1 {[%clk 0:00:07.9]} 52. Kc2 {[%clk 0:00:02]} 52... Rd6 {[%clk
0:00:07.4]} 53. Kc3 {[%clk 0:00:01.4]} 53... e4 {[%clk 0:00:07.9]} 0-1

[Event "*** Titled Tuesday Blitz"]
[Site "Chess.com"]
[Date "2021.02.09"]
[Round "2"]
[White "bocah_sakit"]
[Black "LucaBrasi1968"]
[Result "1/2-1/2"]
[WhiteElo "2837"]
[BlackElo "2533"]
[TimeControl "180+1"]
[EndTime "10:19:16 PST"]
[Termination "Game drawn - insufficient material"]

1. e4 {[%clk 0:03:00.9]} 1... c6 {[%clk 0:02:58.3]} 2. d4 {[%clk 0:03:00.8]}
2... d5 {[%clk 0:02:58.2]} 3. Nd2 {[%clk 0:03:01.5]} 3... dxe4 {[%clk
0:02:58.4]} 4. Nxe4 {[%clk 0:03:02.4]} 4... Bf5 {[%clk 0:02:58.6]} 5. Ng3 {[%clk
0:03:02.7]} 5... Bg6 {[%clk 0:02:58.9]} 6. Nf3 {[%clk 0:03:03.4]} 6... Nf6
{[%clk 0:02:58.5]} 7. Ne5 {[%clk 0:02:59.9]} 7... Nbd7 {[%clk 0:02:57.8]} 8.
Nxg6 {[%clk 0:02:58.1]} 8... hxg6 {[%clk 0:02:58]} 9. Bc4 {[%clk 0:02:57.8]}
9... e6 {[%clk 0:02:58]} 10. Bf4 {[%clk 0:02:57.3]} 10... Nb6 {[%clk 0:02:57.4]}
11. Bb3 {[%clk 0:02:55.9]} 11... Bd6 {[%clk 0:02:57.8]} 12. Qf3 {[%clk
0:02:50.1]} 12... Bxf4 {[%clk 0:02:52.3]} 13. Qxf4 {[%clk 0:02:51]} 13... Qb8
{[%clk 0:02:52.1]} 14. Qd2 {[%clk 0:02:47.9]} 14... Qd6 {[%clk 0:02:51.8]} 15.
O-O-O {[%clk 0:02:46.4]} 15... O-O-O {[%clk 0:02:51]} 16. h3 {[%clk 0:02:45.3]}
16... Kb8 {[%clk 0:02:45.9]} 17. Rhe1 {[%clk 0:02:35.5]} 17... Rd7 {[%clk
0:02:41.7]} 18. c3 {[%clk 0:02:32.7]} 18... c5 {[%clk 0:02:35.5]} 19. Qe3 {[%clk
0:02:23.5]} 19... cxd4 {[%clk 0:02:35.2]} 20. Rxd4 {[%clk 0:02:24.3]} 20... Qc7
{[%clk 0:02:34.3]} 21. Red1 {[%clk 0:02:21.7]} 21... Rhd8 {[%clk 0:02:33.4]} 22.
Ne2 {[%clk 0:02:18.2]} 22... Rxd4 {[%clk 0:02:31.1]} 23. Rxd4 {[%clk 0:02:19.1]}
23... Rxd4 {[%clk 0:02:29.4]} 24. Nxd4 {[%clk 0:02:20]} 24... a6 {[%clk
0:02:21.7]} 25. Nf3 {[%clk 0:02:16.8]} 25... Nbd5 {[%clk 0:02:20.7]} 26. Qe5
{[%clk 0:02:11.9]} 26... Nf4 {[%clk 0:02:12.8]} 27. Qxc7+ {[%clk 0:02:06.7]}
27... Kxc7 {[%clk 0:02:12.4]} 28. Ng5 {[%clk 0:02:07.4]} 28... Nxg2 {[%clk
0:01:59.9]} 29. Nxf7 {[%clk 0:02:07.1]} 29... Nf4 {[%clk 0:01:59.9]} 30. Ng5
{[%clk 0:02:03.6]} 30... Kd6 {[%clk 0:01:53.5]} 31. Kd2 {[%clk 0:02:04]} 31...
Ke5 {[%clk 0:01:51.1]} 32. Ke3 {[%clk 0:02:01.6]} 32... N6d5+ {[%clk 0:01:41.9]}
33. Kd2 {[%clk 0:01:48.8]} 33... Nf6 {[%clk 0:01:23.4]} 34. Bc2 {[%clk 0:01:41]}
34... b5 {[%clk 0:01:14.5]} 35. Ke3 {[%clk 0:01:37.9]} 35... N6d5+ {[%clk
0:01:08.2]} 36. Kf3 {[%clk 0:01:35.5]} 36... Kf6 {[%clk 0:01:06.4]} 37. h4
{[%clk 0:01:33]} 37... e5 {[%clk 0:01:00.9]} 38. Ne4+ {[%clk 0:01:30.6]} 38...
Ke7 {[%clk 0:01:00.7]} 39. Nc5 {[%clk 0:01:30.3]} 39... a5 {[%clk 0:01:00]} 40.
Nb7 {[%clk 0:01:25.2]} 40... a4 {[%clk 0:00:59.8]} 41. Nc5 {[%clk 0:01:19.9]}
41... a3 {[%clk 0:00:59.1]} 42. bxa3 {[%clk 0:01:15.5]} 42... Nxc3 {[%clk
0:00:59.3]} 43. Bb3 {[%clk 0:01:11.1]} 43... Kd6 {[%clk 0:00:53.6]} 44. Ne4+
{[%clk 0:01:05.2]} 44... Nxe4 {[%clk 0:00:53.2]} 45. Kxe4 {[%clk 0:01:06.1]}
45... Ng2 {[%clk 0:00:50.1]} 46. Bd1 {[%clk 0:00:56.9]} 46... Nxh4 {[%clk
0:00:49.4]} 47. Be2 {[%clk 0:00:55.7]} 47... Nf5 {[%clk 0:00:41.1]} 48. Bxb5
{[%clk 0:00:55.4]} 48... Nd4 {[%clk 0:00:41.4]} 49. Bd3 {[%clk 0:00:49.8]} 49...
g5 {[%clk 0:00:41.3]} 50. a4 {[%clk 0:00:47.8]} 50... Nc6 {[%clk 0:00:36.9]} 51.
Kf5 {[%clk 0:00:42.6]} 51... Kc5 {[%clk 0:00:30.6]} 52. Be4 {[%clk 0:00:40.4]}
52... Na5 {[%clk 0:00:30.6]} 53. Kxe5 {[%clk 0:00:40]} 53... Kb4 {[%clk
0:00:26.8]} 54. Kf5 {[%clk 0:00:39.7]} 54... Kxa4 {[%clk 0:00:26]} 55. Bd5
{[%clk 0:00:38.9]} 55... Kb4 {[%clk 0:00:25.2]} 56. Kxg5 {[%clk 0:00:39.2]}
56... Kc5 {[%clk 0:00:25.7]} 57. Bf7 {[%clk 0:00:39.1]} 57... Kd4 {[%clk
0:00:21.7]} 58. f4 {[%clk 0:00:36.3]} 58... Nc6 {[%clk 0:00:19.4]} 59. f5 {[%clk
0:00:35.5]} 59... Ke5 {[%clk 0:00:19.3]} 60. Be6 {[%clk 0:00:34.5]} 60... Nd4
{[%clk 0:00:18.3]} 61. Bc8 {[%clk 0:00:32]} 61... Nc6 {[%clk 0:00:15.9]} 62. Bd7
{[%clk 0:00:30.1]} 62... Ne7 {[%clk 0:00:15.9]} 63. a4 {[%clk 0:00:30.6]} 63...
Kd6 {[%clk 0:00:16]} 64. Be6 {[%clk 0:00:30.1]} 64... g6 {[%clk 0:00:16]} 65. f6
{[%clk 0:00:29.9]} 65... Kxe6 {[%clk 0:00:15.2]} 66. fxe7 {[%clk 0:00:30.1]}
66... Kxe7 {[%clk 0:00:15.7]} 67. a5 {[%clk 0:00:30.9]} 67... Kd6 {[%clk
0:00:16.1]} 68. a6 {[%clk 0:00:24]} 68... Kc7 {[%clk 0:00:16.1]} 69. a7 {[%clk
0:00:24.9]} 69... Kb7 {[%clk 0:00:16.2]} 70. a8=Q+ {[%clk 0:00:25.8]} 70... Kxa8
{[%clk 0:00:16.1]} 71. Kxg6 {[%clk 0:00:26.7]} 1/2-1/2

[Event "*** Titled Tuesday Blitz"]
[Site "Chess.com"]
[Date "2021.02.09"]
[Round "2"]
[White "Rozum_Ivan"]
[Black "stasiek18"]
[Result "1-0"]
[WhiteElo "2732"]
[BlackElo "2405"]
[TimeControl "180+1"]
[EndTime "10:19:18 PST"]
[Termination "Rozum_Ivan won by resignation"]

1. e4 {[%clk 0:03:00.9]} 1... e6 {[%clk 0:03:00.3]} 2. d4 {[%clk 0:02:58.6]}
2... d5 {[%clk 0:03:01.2]} 3. Nd2 {[%clk 0:02:58.7]} 3... c5 {[%clk 0:02:59.1]}
4. Ngf3 {[%clk 0:02:57.4]} 4... cxd4 {[%clk 0:02:58.6]} 5. Nxd4 {[%clk
0:02:58.3]} 5... Nc6 {[%clk 0:02:57.4]} 6. Bb5 {[%clk 0:02:57.6]} 6... Bd7
{[%clk 0:02:57]} 7. Nxc6 {[%clk 0:02:58]} 7... bxc6 {[%clk 0:02:57.9]} 8. Ba4
{[%clk 0:02:58.2]} 8... Bd6 {[%clk 0:02:45.8]} 9. c4 {[%clk 0:02:56.5]} 9... Nf6
{[%clk 0:02:41.4]} 10. Qe2 {[%clk 0:02:45]} 10... dxe4 {[%clk 0:02:33.7]} 11.
O-O {[%clk 0:02:30.7]} 11... Qa5 {[%clk 0:01:54.7]} 12. Bc2 {[%clk 0:02:22.9]}
12... Qe5 {[%clk 0:01:43.7]} 13. g3 {[%clk 0:02:18]} 13... e3 {[%clk 0:01:30.1]}
14. f4 {[%clk 0:02:16.6]} 14... Qa5 {[%clk 0:00:39.6]} 15. Nb3 {[%clk
0:02:14.1]} 15... Qa6 {[%clk 0:00:28.7]} 16. Bxe3 {[%clk 0:02:11]} 16... O-O
{[%clk 0:00:28.5]} 17. Rfd1 {[%clk 0:02:05.7]} 17... Be7 {[%clk 0:00:24.8]} 18.
Nc5 {[%clk 0:01:59.7]} 18... Bxc5 {[%clk 0:00:23.8]} 19. Bxc5 {[%clk 0:02:00.6]}
19... Rfe8 {[%clk 0:00:20.5]} 20. Bd4 {[%clk 0:01:57.7]} 20... Qb7 {[%clk
0:00:20.5]} 21. Rd2 {[%clk 0:01:07.3]} 21... c5 {[%clk 0:00:18.5]} 22. Bxc5
{[%clk 0:00:28.2]} 22... Bc6 {[%clk 0:00:18.3]} 23. Bd4 {[%clk 0:00:25.8]} 23...
Rad8 {[%clk 0:00:17.3]} 24. Qe5 {[%clk 0:00:16.1]} 24... Rd7 {[%clk 0:00:05.7]}
25. Qg5 {[%clk 0:00:15.1]} 25... h6 {[%clk 0:00:04.7]} 26. Qc5 {[%clk
0:00:10.9]} 26... Red8 {[%clk 0:00:04.6]} 27. Rad1 {[%clk 0:00:08.6]} 27... Ne4
{[%clk 0:00:03]} 28. Bxe4 {[%clk 0:00:07.1]} 28... Bxe4 {[%clk 0:00:03.9]} 29.
Qe5 {[%clk 0:00:06]} 29... f6 {[%clk 0:00:02.4]} 30. Qxe6+ {[%clk 0:00:06.4]}
30... Kh7 {[%clk 0:00:02.7]} 31. b3 {[%clk 0:00:05.5]} 31... Bh1 {[%clk
0:00:02.3]} 32. Qf5+ {[%clk 0:00:04.1]} 32... Kh8 {[%clk 0:00:02.8]} 33. Qh3
{[%clk 0:00:03.7]} 33... Bf3 {[%clk 0:00:01.8]} 34. Re1 {[%clk 0:00:02.5]} 34...
Rxd4 {[%clk 0:00:02.3]} 35. Rxd4 {[%clk 0:00:02.1]} 35... Rxd4 {[%clk
0:00:03.2]} 36. Re8+ {[%clk 0:00:02.5]} 36... Kh7 {[%clk 0:00:03.6]} 37. Qf5+
{[%clk 0:00:03.4]} 37... g6 {[%clk 0:00:04.1]} 38. Qe6 {[%clk 0:00:03.5]} 38...
Rd1+ {[%clk 0:00:03.8]} 39. Kf2 {[%clk 0:00:04]} 39... Qb6+ {[%clk 0:00:02.5]}
40. Kxf3 {[%clk 0:00:04.2]} 40... Qxe6 {[%clk 0:00:02]} 41. Rxe6 {[%clk
0:00:05.1]} 41... Rd2 {[%clk 0:00:02.6]} 42. Re7+ {[%clk 0:00:05.4]} 42... Kg8
{[%clk 0:00:02.3]} 43. Rxa7 {[%clk 0:00:06.3]} 43... Rxh2 {[%clk 0:00:02.6]} 44.
c5 {[%clk 0:00:06.6]} 44... Rc2 {[%clk 0:00:02.3]} 45. b4 {[%clk 0:00:06.9]}
45... h5 {[%clk 0:00:02.6]} 46. a4 {[%clk 0:00:06]} 46... Rc3+ {[%clk
0:00:02.4]} 47. Kf2 {[%clk 0:00:05.8]} 47... g5 {[%clk 0:00:02.4]} 48. fxg5
{[%clk 0:00:05.9]} 48... fxg5 {[%clk 0:00:03.3]} 49. a5 {[%clk 0:00:06.8]} 49...
g4 {[%clk 0:00:03.6]} 50. a6 {[%clk 0:00:06.4]} 50... Rc2+ {[%clk 0:00:03.6]}
51. Ke3 {[%clk 0:00:06.6]} 51... Rc3+ {[%clk 0:00:03.9]} 52. Kf4 {[%clk
0:00:06.8]} 52... Rf3+ {[%clk 0:00:04.5]} 53. Kg5 {[%clk 0:00:07.2]} 53... Rxg3
{[%clk 0:00:05.4]} 54. Rb7 {[%clk 0:00:07.6]} 54... Ra3 {[%clk 0:00:05]} 55. a7
{[%clk 0:00:07.6]} 55... g3 {[%clk 0:00:05.6]} 56. Rb8+ {[%clk 0:00:07.1]} 56...
Kf7 {[%clk 0:00:05.7]} 57. a8=Q {[%clk 0:00:08]} 57... Rxa8 {[%clk 0:00:06]} 58.
Rxa8 {[%clk 0:00:08.9]} 58... g2 {[%clk 0:00:06.2]} 59. Ra1 {[%clk 0:00:09.6]}
1-0

[Event "*** Titled Tuesday Blitz"]
[Site "Chess.com"]
[Date "2021.02.09"]
[Round "2"]
[White "Kurkusha"]
[Black "Anton_Demchenko"]
[Result "0-1"]
[WhiteElo "2351"]
[BlackElo "2856"]
[TimeControl "180+1"]
[EndTime "10:19:24 PST"]
[Termination "Anton_Demchenko won by checkmate"]

1. d4 {[%clk 0:03:00.9]} 1... Nf6 {[%clk 0:02:55.4]} 2. c4 {[%clk 0:02:59.8]}
2... e6 {[%clk 0:02:54.1]} 3. Nf3 {[%clk 0:02:58.2]} 3... Bb4+ {[%clk
0:02:53.9]} 4. Nc3 {[%clk 0:02:58.2]} 4... b6 {[%clk 0:02:49.9]} 5. e3 {[%clk
0:02:53]} 5... Bb7 {[%clk 0:02:45]} 6. Bd3 {[%clk 0:02:52.8]} 6... Ne4 {[%clk
0:02:43.8]} 7. Qc2 {[%clk 0:02:50]} 7... f5 {[%clk 0:02:39.7]} 8. O-O {[%clk
0:02:34.8]} 8... Bxc3 {[%clk 0:02:38.4]} 9. bxc3 {[%clk 0:02:34.4]} 9... O-O
{[%clk 0:02:36.4]} 10. Nd2 {[%clk 0:02:26.9]} 10... Qh4 {[%clk 0:02:34.1]} 11.
f3 {[%clk 0:02:16.4]} 11... Nxd2 {[%clk 0:02:29.6]} 12. Bxd2 {[%clk 0:02:17.3]}
12... c5 {[%clk 0:02:20.9]} 13. Be1 {[%clk 0:02:07.8]} 13... Qg5 {[%clk
0:02:16]} 14. Qe2 {[%clk 0:02:06.7]} 14... Nc6 {[%clk 0:02:14.8]} 15. Bg3 {[%clk
0:02:03.2]} 15... Qe7 {[%clk 0:02:02.9]} 16. Rad1 {[%clk 0:01:51]} 16... Na5
{[%clk 0:01:59.3]} 17. e4 {[%clk 0:01:01]} 17... f4 {[%clk 0:01:57.6]} 18. Bf2
{[%clk 0:00:59.9]} 18... e5 {[%clk 0:01:57.3]} 19. dxc5 {[%clk 0:00:54.7]} 19...
bxc5 {[%clk 0:01:56.7]} 20. Rb1 {[%clk 0:00:53.7]} 20... Bc6 {[%clk 0:01:45.5]}
21. Rb2 {[%clk 0:00:47.2]} 21... Nb7 {[%clk 0:01:42.4]} 22. Rfb1 {[%clk
0:00:47.2]} 22... Nd8 {[%clk 0:01:41.5]} 23. Rb8 {[%clk 0:00:35.2]} 23... Ne6
{[%clk 0:01:41.1]} 24. Rxf8+ {[%clk 0:00:32.4]} 24... Rxf8 {[%clk 0:01:39.6]}
25. Qb2 {[%clk 0:00:26.4]} 25... g5 {[%clk 0:01:30.7]} 26. Kh1 {[%clk
0:00:24.8]} 26... h5 {[%clk 0:01:30.5]} 27. Qa3 {[%clk 0:00:22]} 27... Kg7
{[%clk 0:01:22.3]} 28. Rb5 {[%clk 0:00:18.5]} 28... g4 {[%clk 0:00:54.2]} 29.
Bxc5 {[%clk 0:00:15.5]} 29... Nxc5 {[%clk 0:00:53.9]} 30. Qxc5 {[%clk
0:00:15.4]} 30... Qxc5 {[%clk 0:00:53.4]} 31. Rxc5 {[%clk 0:00:15.9]} 31... Kf6
{[%clk 0:00:53.7]} 32. Ra5 {[%clk 0:00:15.4]} 32... Rb8 {[%clk 0:00:53.1]} 33.
Kg1 {[%clk 0:00:11.1]} 33... Rb2 {[%clk 0:00:49.1]} 34. Rxa7 {[%clk 0:00:10.4]}
34... Rd2 {[%clk 0:00:38.4]} 35. Bf1 {[%clk 0:00:10.2]} 35... g3 {[%clk
0:00:39]} 36. hxg3 {[%clk 0:00:10.2]} 36... fxg3 {[%clk 0:00:39.9]} 37. a4
{[%clk 0:00:10.2]} 37... Kg5 {[%clk 0:00:33.5]} 38. a5 {[%clk 0:00:10.5]} 38...
Kf4 {[%clk 0:00:33.8]} 39. a6 {[%clk 0:00:10.8]} 39... Ra2 {[%clk 0:00:33.5]}
40. Rc7 {[%clk 0:00:06.3]} 40... Rxa6 {[%clk 0:00:32.3]} 41. Rc8 {[%clk
0:00:06.9]} 41... Ra8 {[%clk 0:00:20.9]} 42. Rc7 {[%clk 0:00:05.3]} 42... Rb8
{[%clk 0:00:20.1]} 43. Ra7 {[%clk 0:00:04.9]} 43... h4 {[%clk 0:00:19.3]} 44.
Ra5 {[%clk 0:00:04.9]} 44... Rb1 {[%clk 0:00:18.5]} 45. Ra2 {[%clk 0:00:03.7]}
45... Rc1 {[%clk 0:00:17]} 46. Rd2 {[%clk 0:00:03.7]} 46... Rxc3 {[%clk
0:00:16.6]} 47. Rd6 {[%clk 0:00:04.3]} 47... h3 {[%clk 0:00:12]} 48. Rf6+ {[%clk
0:00:04.4]} 48... Ke3 {[%clk 0:00:08]} 49. gxh3 {[%clk 0:00:04.1]} 49... Rc2
{[%clk 0:00:08.1]} 50. h4 {[%clk 0:00:03.9]} 50... Rh2 {[%clk 0:00:07.4]} 51.
Rf5 {[%clk 0:00:03.3]} 51... Rxh4 {[%clk 0:00:06.3]} 52. Rxe5 {[%clk 0:00:03.5]}
52... Kxf3 {[%clk 0:00:07.2]} 53. Rf5+ {[%clk 0:00:03.9]} 53... Kxe4 {[%clk
0:00:06.7]} 54. Rg5 {[%clk 0:00:04.5]} 54... Kf4 {[%clk 0:00:07.2]} 55. Rg7
{[%clk 0:00:02.3]} 55... Rh1# {[%clk 0:00:07.2]} 0-1

[Event "*** Titled Tuesday Blitz"]
[Site "Chess.com"]
[Date "2021.02.09"]
[Round "2"]
[White "bsnsun"]
[Black "night_player"]
[Result "0-1"]
[WhiteElo "2441"]
[BlackElo "2276"]
[TimeControl "180+1"]
[EndTime "10:19:27 PST"]
[Termination "night_player won by checkmate"]

1. d4 {[%clk 0:03:00.9]} 1... f5 {[%clk 0:02:59.3]} 2. Nf3 {[%clk 0:02:59.2]}
2... Nf6 {[%clk 0:02:59.5]} 3. g3 {[%clk 0:02:59.9]} 3... d6 {[%clk 0:03:00]} 4.
c4 {[%clk 0:02:57.5]} 4... g6 {[%clk 0:03:00.2]} 5. Bg2 {[%clk 0:02:57.5]} 5...
Bg7 {[%clk 0:03:00.7]} 6. O-O {[%clk 0:02:57.7]} 6... O-O {[%clk 0:03:01.1]} 7.
Nc3 {[%clk 0:02:57.9]} 7... c6 {[%clk 0:03:01.6]} 8. b3 {[%clk 0:02:58.3]} 8...
Qc7 {[%clk 0:03:00.6]} 9. Bb2 {[%clk 0:02:50.3]} 9... e5 {[%clk 0:03:00.9]} 10.
dxe5 {[%clk 0:02:50.1]} 10... dxe5 {[%clk 0:03:01.8]} 11. e4 {[%clk 0:02:50.2]}
11... fxe4 {[%clk 0:02:52.7]} 12. Ng5 {[%clk 0:02:47.6]} 12... e3 {[%clk
0:02:49.3]} 13. fxe3 {[%clk 0:02:46]} 13... Na6 {[%clk 0:02:35.2]} 14. Nce4
{[%clk 0:02:38.4]} 14... Nxe4 {[%clk 0:02:25.8]} 15. Nxe4 {[%clk 0:02:34.6]}
15... Rxf1+ {[%clk 0:02:18.5]} 16. Qxf1 {[%clk 0:02:31.7]} 16... Bf5 {[%clk
0:02:18.8]} 17. Rd1 {[%clk 0:01:53.4]} 17... Rd8 {[%clk 0:02:16.6]} 18. Qe1
{[%clk 0:01:45.3]} 18... Qb6 {[%clk 0:01:14.1]} 19. Nd6 {[%clk 0:01:27.6]} 19...
Be6 {[%clk 0:01:08.7]} 20. Bc3 {[%clk 0:01:22.2]} 20... Qc7 {[%clk 0:01:00.8]}
21. Ne4 {[%clk 0:01:19.8]} 21... b6 {[%clk 0:00:55]} 22. h4 {[%clk 0:01:12.7]}
22... Nb8 {[%clk 0:00:51.4]} 23. Ng5 {[%clk 0:01:11.3]} 23... Bf5 {[%clk
0:00:48.4]} 24. Be4 {[%clk 0:01:09.6]} 24... Bxe4 {[%clk 0:00:46.2]} 25. Nxe4
{[%clk 0:01:09]} 25... Rxd1 {[%clk 0:00:41.7]} 26. Qxd1 {[%clk 0:01:09.9]} 26...
Qd7 {[%clk 0:00:42.4]} 27. Qxd7 {[%clk 0:01:06.1]} 27... Nxd7 {[%clk 0:00:43.3]}
28. Nd6 {[%clk 0:01:06.5]} 28... Kf8 {[%clk 0:00:40.1]} 29. Nc8 {[%clk
0:01:06.9]} 29... a5 {[%clk 0:00:39.5]} 30. Na7 {[%clk 0:01:07]} 30... c5 {[%clk
0:00:36.4]} 31. Kf2 {[%clk 0:01:00.8]} 31... Ke7 {[%clk 0:00:36.9]} 32. Kf3
{[%clk 0:01:00.9]} 32... Ke6 {[%clk 0:00:35.2]} 33. Nb5 {[%clk 0:00:59.3]} 33...
Nb8 {[%clk 0:00:33.5]} 34. g4 {[%clk 0:00:57.5]} 34... Nc6 {[%clk 0:00:32.5]}
35. Nc7+ {[%clk 0:00:57.9]} 35... Kd7 {[%clk 0:00:32.3]} 36. Nd5 {[%clk
0:00:58.5]} 36... Ke6 {[%clk 0:00:31.5]} 37. Nxb6 {[%clk 0:00:58.3]} 37... e4+
{[%clk 0:00:30.8]} 38. Kxe4 {[%clk 0:00:56.6]} 38... Bxc3 {[%clk 0:00:31.7]} 39.
Na4 {[%clk 0:00:56.5]} 39... Bb4 {[%clk 0:00:31.5]} 40. Nb6 {[%clk 0:00:56.7]}
40... Ne5 {[%clk 0:00:30.5]} 41. Nd5 {[%clk 0:00:56.7]} 41... Nxg4 {[%clk
0:00:30.2]} 42. Nf4+ {[%clk 0:00:48.5]} 42... Kd6 {[%clk 0:00:29.1]} 43. h5
{[%clk 0:00:49.1]} 43... gxh5 {[%clk 0:00:26.3]} 44. Nxh5 {[%clk 0:00:48.7]}
44... Nf2+ {[%clk 0:00:27]} 45. Kf3 {[%clk 0:00:48.1]} 45... Nd3 {[%clk
0:00:27.4]} 46. Nf6 {[%clk 0:00:48.6]} 46... h6 {[%clk 0:00:27]} 47. Ng4 {[%clk
0:00:43.7]} 47... h5 {[%clk 0:00:26.5]} 48. Nf6 {[%clk 0:00:44]} 48... h4 {[%clk
0:00:26.5]} 49. Kg4 {[%clk 0:00:44.2]} 49... Nc1 {[%clk 0:00:26.6]} 50. Kxh4
{[%clk 0:00:42.5]} 50... Nxa2 {[%clk 0:00:27.2]} 51. Ne4+ {[%clk 0:00:42.6]}
51... Ke5 {[%clk 0:00:26]} 52. Nf2 {[%clk 0:00:38.8]} 52... Nc1 {[%clk
0:00:25.2]} 53. Kg3 {[%clk 0:00:38.2]} 53... Nxb3 {[%clk 0:00:25.2]} 54. Nd3+
{[%clk 0:00:38.5]} 54... Ke4 {[%clk 0:00:25.5]} 55. Nb2 {[%clk 0:00:39.1]} 55...
Kxe3 {[%clk 0:00:25]} 56. Na4 {[%clk 0:00:39.3]} 56... Kd4 {[%clk 0:00:24.6]}
57. Kf3 {[%clk 0:00:39.3]} 57... Kxc4 {[%clk 0:00:24.7]} 58. Ke2 {[%clk
0:00:39.6]} 58... Kb5 {[%clk 0:00:19.1]} 59. Nb2 {[%clk 0:00:39.1]} 59... a4
{[%clk 0:00:19.5]} 60. Nxa4 {[%clk 0:00:26.2]} 60... Kxa4 {[%clk 0:00:19.6]} 61.
Kd3 {[%clk 0:00:27.1]} 61... Kb5 {[%clk 0:00:18.6]} 62. Kc2 {[%clk 0:00:27.1]}
62... Kc4 {[%clk 0:00:19.5]} 63. Kb2 {[%clk 0:00:27.2]} 63... Kd3 {[%clk
0:00:16]} 64. Kxb3 {[%clk 0:00:27.5]} 64... c4+ {[%clk 0:00:16.1]} 65. Kxb4
{[%clk 0:00:28.2]} 65... c3 {[%clk 0:00:16.6]} 66. Kc5 {[%clk 0:00:28.5]} 66...
c2 {[%clk 0:00:17]} 67. Kd5 {[%clk 0:00:29.4]} 67... c1=Q {[%clk 0:00:17.9]} 68.
Ke5 {[%clk 0:00:30]} 68... Qc4 {[%clk 0:00:18]} 69. Kd6 {[%clk 0:00:30.2]} 69...
Kd4 {[%clk 0:00:17.8]} 70. Ke7 {[%clk 0:00:30.1]} 70... Qd5 {[%clk 0:00:18.1]}
71. Kf6 {[%clk 0:00:30.9]} 71... Qe4 {[%clk 0:00:17.9]} 72. Kg5 {[%clk
0:00:30.8]} 72... Qf3 {[%clk 0:00:18]} 73. Kg6 {[%clk 0:00:30.4]} 73... Qf4
{[%clk 0:00:18.3]} 74. Kg7 {[%clk 0:00:30.8]} 74... Qf5 {[%clk 0:00:18.7]} 75.
Kh6 {[%clk 0:00:31.2]} 75... Qg4 {[%clk 0:00:18.9]} 76. Kh7 {[%clk 0:00:31.7]}
76... Ke5 {[%clk 0:00:19.8]} 77. Kh8 {[%clk 0:00:31.9]} 77... Kf6 {[%clk
0:00:20.7]} 78. Kh7 {[%clk 0:00:32.5]} 78... Qg7# {[%clk 0:00:21.1]} 0-1